[Event "Titled Tuesday Blitz July 26 Late 2022"]
[White "Melikhov, Evgeny V."]
[Black "Pfreundt, Jakob"]
[WhiteFideId "4122046"]
[BlackFideId "12918156"]
[WhiteElo "1995"]
[BlackElo "2345"]
[Result "0-1"]
[Round "08"]
[TimeControl "180+1"]
[Date "2022.07.27"]
[WhiteClock "0:00:07"]
[BlackClock "0:00:09"]

1. d4 {[%clk 0:02:56]}  d5 {[%clk 0:02:58]} 2. c4 {[%clk 0:02:55]}  e6 {[%clk 0:02:58]} 3. Nc3 {[%clk 0:02:55]}  c5 {[%clk 0:02:59]} 4. cxd5 {[%clk 0:02:55]}  exd5 {[%clk 0:03:00]} 5. Nf3 {[%clk 0:02:54]}  Nc6 {[%clk 0:03:00]} 6. g3 {[%clk 0:02:54]}  Nf6 {[%clk 0:03:00]} 7. Bg2 {[%clk 0:02:54]}  c4 {[%clk 0:03:01]} 8. O-O {[%clk 0:02:53]}  Be7 {[%clk 0:03:01]} 9. Re1 {[%clk 0:02:52]}  O-O {[%clk 0:03:01]} 10. Ne5 {[%clk 0:02:46]}  Be6 {[%clk 0:02:56]} 11. e4 {[%clk 0:02:40]}  dxe4 {[%clk 0:02:45]} 12. Nxc6 {[%clk 0:02:39]}  bxc6 {[%clk 0:02:46]} 13. Nxe4 {[%clk 0:02:39]}  Bd5 {[%clk 0:02:44]} 14. Nxf6+ {[%clk 0:01:49]}  Bxf6 {[%clk 0:02:44]} 15. Be3 {[%clk 0:01:47]}  Rb8 {[%clk 0:02:39]} 16. Rb1 {[%clk 0:01:43]}  Qa5 {[%clk 0:02:33]} 17. a3 {[%clk 0:01:41]}  Rfd8 {[%clk 0:02:33]} 18. Bd2 {[%clk 0:01:32]}  Qb6 {[%clk 0:02:29]} 19. Bc3 {[%clk 0:01:32]}  g6 {[%clk 0:01:36]} 20. Qd2 {[%clk 0:01:17]}  Bxg2 {[%clk 0:01:29]} 21. Kxg2 {[%clk 0:01:16]}  Bxd4 {[%clk 0:01:30]} 22. Rbd1 {[%clk 0:01:16]}  c5 {[%clk 0:01:18]} 23. Qg5 {[%clk 0:01:09]}  Qc6+ {[%clk 0:01:14]} 24. f3 {[%clk 0:01:01]}  Rd5 {[%clk 0:01:12]} 25. Qf4 {[%clk 0:00:55]}  Rbd8 {[%clk 0:01:08]} 26. Qe4 {[%clk 0:00:50]}  Qd6 {[%clk 0:00:42]} 27. Qe2 {[%clk 0:00:44]}  Bxc3 {[%clk 0:00:39]} 28. Rxd5 {[%clk 0:00:41]}  Qxd5 {[%clk 0:00:40]} 29. bxc3 {[%clk 0:00:41]}  Qd3 {[%clk 0:00:32]} 30. Qe5 {[%clk 0:00:40]}  h5 {[%clk 0:00:27]} 31. h4 {[%clk 0:00:37]}  Kh7 {[%clk 0:00:25]} 32. Re3 {[%clk 0:00:28]}  Qd2+ {[%clk 0:00:23]} 33. Re2 {[%clk 0:00:27]}  Qd3 {[%clk 0:00:21]} 34. Re3 {[%clk 0:00:27]}  Qd5 {[%clk 0:00:16]} 35. Qxd5 {[%clk 0:00:22]}  Rxd5 {[%clk 0:00:16]} 36. Re7 {[%clk 0:00:22]}  Kg7 {[%clk 0:00:16]} 37. Rxa7 {[%clk 0:00:22]}  Rd2+ {[%clk 0:00:16]} 38. Kh3 {[%clk 0:00:21]}  Rd3 {[%clk 0:00:17]} 39. f4 {[%clk 0:00:20]}  Rxc3 {[%clk 0:00:16]} 40. Rc7 {[%clk 0:00:19]}  Rxa3 {[%clk 0:00:15]} 41. Rxc5 {[%clk 0:00:19]}  Rc3 {[%clk 0:00:15]} 42. Rc6 {[%clk 0:00:18]}  Rc2 {[%clk 0:00:13]} 43. Rc7 {[%clk 0:00:17]}  c3 {[%clk 0:00:13]} 44. Rc6 {[%clk 0:00:17]}  Kf8 {[%clk 0:00:13]} 45. Rc7 {[%clk 0:00:17]}  Ke8 {[%clk 0:00:14]} 46. Rc4 {[%clk 0:00:15]}  Ke7 {[%clk 0:00:13]} 47. Rc5 {[%clk 0:00:15]}  Kd6 {[%clk 0:00:13]} 48. Rc8 {[%clk 0:00:15]}  Kd5 {[%clk 0:00:12]} 49. Rf8 {[%clk 0:00:14]}  Rd2 {[%clk 0:00:10]} 50. Rxf7 {[%clk 0:00:12]}  c2 {[%clk 0:00:11]} 51. Rc7 {[%clk 0:00:12]}  Ke4 {[%clk 0:00:10]} 52. Re7+ {[%clk 0:00:10]}  Kd3 {[%clk 0:00:10]} 53. Rd7+ {[%clk 0:00:08]}  Ke2 {[%clk 0:00:10]} 54. Re7+ {[%clk 0:00:07]}  Kd1 {[%clk 0:00:10]} 55. Rc7 {[%clk 0:00:07]}  c1=Q {[%clk 0:00:08]} 56. Rxc1+ {[%clk 0:00:07]}  Kxc1 {[%clk 0:00:09]} 0-1


[Site "https://www.chess.com"]

[Event "Titled Tuesday Blitz July 26 Late 2022"]
[White "Nagy, Gabor"]
[Black "Fedoseev, Vladimir"]
[WhiteFideId "737119"]
[BlackFideId "24130737"]
[WhiteElo "2530"]
[BlackElo "2726"]
[Result "0-1"]
[Round "08"]
[TimeControl "180+1"]
[Date "2022.07.26"]
[WhiteClock "0:00:01"]
[BlackClock "0:00:06"]

1. Nf3 {[%clk 0:03:00]}  d5 {[%clk 0:02:59]} 2. g3 {[%clk 0:03:01]}  Nd7 {[%clk 0:02:58]} 3. c4 {[%clk 0:03:00]}  dxc4 {[%clk 0:02:53]} 4. Qa4 {[%clk 0:03:00]}  a6 {[%clk 0:02:46]} 5. Qxc4 {[%clk 0:03:00]}  b5 {[%clk 0:02:45]} 6. Qc6 {[%clk 0:03:01]}  Rb8 {[%clk 0:02:44]} 7. Bg2 {[%clk 0:03:01]}  Bb7 {[%clk 0:02:43]} 8. Qc2 {[%clk 0:03:01]}  Ngf6 {[%clk 0:02:42]} 9. O-O {[%clk 0:03:01]}  c5 {[%clk 0:02:38]} 10. d3 {[%clk 0:03:01]}  e6 {[%clk 0:02:37]} 11. a4 {[%clk 0:03:00]}  Bd6 {[%clk 0:02:30]} 12. Na3 {[%clk 0:02:55]}  Bc6 {[%clk 0:02:27]} 13. axb5 {[%clk 0:02:36]}  axb5 {[%clk 0:02:25]} 14. e4 {[%clk 0:02:36]}  O-O {[%clk 0:02:18]} 15. b4 {[%clk 0:02:28]}  Rc8 {[%clk 0:01:55]} 16. bxc5 {[%clk 0:02:24]}  Bxc5 {[%clk 0:01:54]} 17. Qe2 {[%clk 0:02:22]}  b4 {[%clk 0:01:42]} 18. Nc4 {[%clk 0:02:21]}  Bb5 {[%clk 0:01:42]} 19. Bb2 {[%clk 0:02:17]}  Bxc4 {[%clk 0:01:13]} 20. dxc4 {[%clk 0:02:15]}  Nb6 {[%clk 0:01:13]} 21. Kh1 {[%clk 0:02:04]}  Qc7 {[%clk 0:01:09]} 22. e5 {[%clk 0:02:02]}  Nfd7 {[%clk 0:01:08]} 23. Ng5 {[%clk 0:02:02]}  Be7 {[%clk 0:01:06]} 24. Nxh7 {[%clk 0:01:46]}  Kxh7 {[%clk 0:00:32]} 25. Qh5+ {[%clk 0:01:45]}  Kg8 {[%clk 0:00:33]} 26. Be4 {[%clk 0:01:45]}  f5 {[%clk 0:00:33]} 27. exf6 {[%clk 0:01:44]}  Nxf6 {[%clk 0:00:33]} 28. Bxf6 {[%clk 0:01:32]}  Rxf6 {[%clk 0:00:34]} 29. Qh7+ {[%clk 0:01:32]}  Kf7 {[%clk 0:00:34]} 30. Qh5+ {[%clk 0:01:31]}  g6 {[%clk 0:00:32]} 31. Qh7+ {[%clk 0:01:30]}  Ke8 {[%clk 0:00:33]} 32. Bxg6+ {[%clk 0:01:20]}  Kd8 {[%clk 0:00:32]} 33. Rad1+ {[%clk 0:01:19]}  Nd7 {[%clk 0:00:32]} 34. Be4 {[%clk 0:01:04]}  Qc5 {[%clk 0:00:22]} 35. Rd2 {[%clk 0:00:53]}  Kc7 {[%clk 0:00:21]} 36. Rfd1 {[%clk 0:00:54]}  Rd8 {[%clk 0:00:17]} 37. Kg2 {[%clk 0:00:47]}  Nf8 {[%clk 0:00:15]} 38. Qg7 {[%clk 0:00:42]}  Rxd2 {[%clk 0:00:15]} 39. Rxd2 {[%clk 0:00:42]}  Nd7 {[%clk 0:00:16]} 40. f3 {[%clk 0:00:37]}  b3 {[%clk 0:00:14]} 41. h4 {[%clk 0:00:36]}  Bd6 {[%clk 0:00:13]} 42. Kh3 {[%clk 0:00:32]}  Qxc4 {[%clk 0:00:10]} 43. Qg5 {[%clk 0:00:23]}  Qf1+ {[%clk 0:00:10]} 44. Kg4 {[%clk 0:00:22]}  Ne5+ {[%clk 0:00:07]} 45. Kh5 {[%clk 0:00:21]}  Rxf3 {[%clk 0:00:07]} 46. Rxd6 {[%clk 0:00:18]}  Kxd6 {[%clk 0:00:07]} 47. Qd8+ {[%clk 0:00:18]}  Nd7 {[%clk 0:00:07]} 48. Qa8 {[%clk 0:00:11]}  Rf5+ {[%clk 0:00:07]} 49. Kg6 {[%clk 0:00:07]}  Rb5 {[%clk 0:00:07]} 50. Qa6+ {[%clk 0:00:07]}  Ke7 {[%clk 0:00:07]} 51. Qa3+ {[%clk 0:00:06]}  Nc5 {[%clk 0:00:05]} 52. Qa7+ {[%clk 0:00:06]}  Kd6 {[%clk 0:00:06]} 53. Ba8 {[%clk 0:00:02]}  b2 {[%clk 0:00:05]} 54. Qg7 {[%clk 0:00:01]}  b1=Q+ {[%clk 0:00:06]} 55. Kh6 {[%clk 0:00:01]}  Qff5 {[%clk 0:00:07]} 56. Qf8+ {[%clk 0:00:01]}  Qxf8+ {[%clk 0:00:06]} 0-1


[Site "https://www.chess.com"]

[Event "Titled Tuesday Blitz July 26 Late 2022"]
[White "Oro, Luis"]
[Black "Hjartarson, Johann"]
[WhiteFideId "104094"]
[BlackFideId "2300044"]
[WhiteElo "2372"]
[BlackElo "2458"]
[Result "0-1"]
[Round "08"]
[TimeControl "180+1"]
[Date "2022.07.27"]
[WhiteClock "0:00:15"]
[BlackClock "0:00:36"]

1. e4 {[%clk 0:03:00]}  Nf6 {[%clk 0:02:59]} 2. e5 {[%clk 0:03:00]}  Nd5 {[%clk 0:02:59]} 3. d4 {[%clk 0:03:01]}  d6 {[%clk 0:02:59]} 4. Nf3 {[%clk 0:03:00]}  Bg4 {[%clk 0:02:59]} 5. Be2 {[%clk 0:02:55]}  e6 {[%clk 0:02:59]} 6. c4 {[%clk 0:02:53]}  Nb6 {[%clk 0:02:59]} 7. exd6 {[%clk 0:02:52]}  cxd6 {[%clk 0:02:59]} 8. b3 {[%clk 0:02:52]}  Be7 {[%clk 0:02:58]} 9. O-O {[%clk 0:02:53]}  O-O {[%clk 0:02:57]} 10. Be3 {[%clk 0:02:52]}  d5 {[%clk 0:02:53]} 11. c5 {[%clk 0:02:50]}  Bxf3 {[%clk 0:02:52]} 12. Bxf3 {[%clk 0:02:47]}  Nc8 {[%clk 0:02:52]} 13. Nc3 {[%clk 0:02:46]}  Nc6 {[%clk 0:02:52]} 14. a3 {[%clk 0:02:45]}  Bf6 {[%clk 0:02:51]} 15. b4 {[%clk 0:02:37]}  a6 {[%clk 0:02:51]} 16. Qd3 {[%clk 0:02:35]}  N8e7 {[%clk 0:02:50]} 17. Ne2 {[%clk 0:02:35]}  e5 {[%clk 0:02:41]} 18. Bg4 {[%clk 0:02:05]}  g6 {[%clk 0:02:28]} 19. Bh6 {[%clk 0:01:54]}  Re8 {[%clk 0:02:16]} 20. Rad1 {[%clk 0:01:39]}  exd4 {[%clk 0:02:09]} 21. Bf4 {[%clk 0:01:35]}  Bg7 {[%clk 0:01:49]} 22. Bd6 {[%clk 0:01:16]}  b5 {[%clk 0:01:46]} 23. Nf4 {[%clk 0:01:09]}  Ne5 {[%clk 0:01:37]} 24. Qg3 {[%clk 0:01:01]}  Nxg4 {[%clk 0:01:32]} 25. Qxg4 {[%clk 0:01:01]}  Nf5 {[%clk 0:01:29]} 26. Nxd5 {[%clk 0:00:39]}  Nxd6 {[%clk 0:01:28]} 27. cxd6 {[%clk 0:00:37]}  Qxd6 {[%clk 0:01:28]} 28. Qf3 {[%clk 0:00:31]}  Rac8 {[%clk 0:01:19]} 29. g3 {[%clk 0:00:23]}  Red8 {[%clk 0:01:11]} 30. Nf4 {[%clk 0:00:21]}  Rc3 {[%clk 0:01:10]} 31. Qb7 {[%clk 0:00:19]}  Rxa3 {[%clk 0:01:07]} 32. Rfe1 {[%clk 0:00:20]}  d3 {[%clk 0:00:48]} 33. Re3 {[%clk 0:00:16]}  Qxb4 {[%clk 0:00:43]} 34. Rexd3 {[%clk 0:00:15]}  Raxd3 {[%clk 0:00:40]} 35. Rxd3 {[%clk 0:00:15]}  Rxd3 {[%clk 0:00:37]} 36. Nxd3 {[%clk 0:00:15]}  Qb1+ {[%clk 0:00:36]} 0-1


[Site "https://www.chess.com"]

[Event "Titled Tuesday Blitz July 26 Late 2022"]
[White "Pakleza, Zbigniew"]
[Black "Riehle, Marco"]
[WhiteFideId "1119290"]
[BlackFideId "12904392"]
[WhiteElo "2467"]
[BlackElo "2462"]
[Result "1-0"]
[Round "08"]
[TimeControl "180+1"]
[Date "2022.07.26"]
[WhiteClock "0:00:06"]
[BlackClock "0:00:04"]

1. d4 {[%clk 0:03:00]}  d5 {[%clk 0:02:57]} 2. Bf4 {[%clk 0:03:00]}  e6 {[%clk 0:02:56]} 3. e3 {[%clk 0:03:01]}  Bd6 {[%clk 0:02:56]} 4. Bg3 {[%clk 0:03:01]}  Nf6 {[%clk 0:02:54]} 5. Nd2 {[%clk 0:03:01]}  O-O {[%clk 0:02:54]} 6. Ngf3 {[%clk 0:03:01]}  c5 {[%clk 0:02:55]} 7. c3 {[%clk 0:03:02]}  Nc6 {[%clk 0:02:54]} 8. Bd3 {[%clk 0:03:02]}  Re8 {[%clk 0:02:53]} 9. Ne5 {[%clk 0:03:02]}  Bxe5 {[%clk 0:02:53]} 10. dxe5 {[%clk 0:03:03]}  Nd7 {[%clk 0:02:53]} 11. Nf3 {[%clk 0:03:03]}  Qc7 {[%clk 0:02:52]} 12. O-O {[%clk 0:02:58]}  g6 {[%clk 0:02:52]} 13. Bb5 {[%clk 0:02:46]}  a6 {[%clk 0:02:49]} 14. Bxc6 {[%clk 0:02:46]}  Qxc6 {[%clk 0:02:50]} 15. Re1 {[%clk 0:02:18]}  b5 {[%clk 0:02:44]} 16. e4 {[%clk 0:02:14]}  Bb7 {[%clk 0:02:33]} 17. exd5 {[%clk 0:02:10]}  Qxd5 {[%clk 0:02:34]} 18. Qc1 {[%clk 0:02:09]}  Kg7 {[%clk 0:02:08]} 19. Bh4 {[%clk 0:01:57]}  h6 {[%clk 0:01:52]} 20. Qf4 {[%clk 0:01:48]}  Qc4 {[%clk 0:01:22]} 21. Bf6+ {[%clk 0:01:30]}  Nxf6 {[%clk 0:01:11]} 22. Qxf6+ {[%clk 0:01:22]}  Kg8 {[%clk 0:01:08]} 23. Rad1 {[%clk 0:01:20]}  Bd5 {[%clk 0:01:02]} 24. Re3 {[%clk 0:00:55]}  Qg4 {[%clk 0:00:53]} 25. a3 {[%clk 0:00:30]}  Rad8 {[%clk 0:00:47]} 26. Red3 {[%clk 0:00:25]}  Bxf3 {[%clk 0:00:41]} 27. Qxf3 {[%clk 0:00:20]}  Qxf3 {[%clk 0:00:41]} 28. gxf3 {[%clk 0:00:21]}  Rxd3 {[%clk 0:00:37]} 29. Rxd3 {[%clk 0:00:22]}  g5 {[%clk 0:00:33]} 30. Rd6 {[%clk 0:00:19]}  Ra8 {[%clk 0:00:30]} 31. f4 {[%clk 0:00:18]}  Kg7 {[%clk 0:00:29]} 32. fxg5 {[%clk 0:00:18]}  hxg5 {[%clk 0:00:30]} 33. Kg2 {[%clk 0:00:15]}  Kg6 {[%clk 0:00:30]} 34. Kf3 {[%clk 0:00:14]}  Kf5 {[%clk 0:00:29]} 35. Rd7 {[%clk 0:00:15]}  Rf8 {[%clk 0:00:27]} 36. Ra7 {[%clk 0:00:15]}  Kxe5 {[%clk 0:00:28]} 37. Rxa6 {[%clk 0:00:16]}  Rh8 {[%clk 0:00:18]} 38. Kg3 {[%clk 0:00:14]}  Rd8 {[%clk 0:00:17]} 39. Rb6 {[%clk 0:00:13]}  Rd3+ {[%clk 0:00:17]} 40. Kg2 {[%clk 0:00:13]}  Rd2 {[%clk 0:00:16]} 41. Rxb5 {[%clk 0:00:13]}  f5 {[%clk 0:00:16]} 42. a4 {[%clk 0:00:11]}  Kf4 {[%clk 0:00:14]} 43. a5 {[%clk 0:00:10]}  e5 {[%clk 0:00:09]} 44. a6 {[%clk 0:00:09]}  Rd1 {[%clk 0:00:09]} 45. Ra5 {[%clk 0:00:07]}  Rd8 {[%clk 0:00:04]} 46. Rxc5 {[%clk 0:00:08]}  Ra8 {[%clk 0:00:03]} 47. Ra5 {[%clk 0:00:06]}  e4 {[%clk 0:00:04]} 48. b4 {[%clk 0:00:06]}  Kg4 {[%clk 0:00:04]} 49. b5 {[%clk 0:00:06]}  f4 {[%clk 0:00:05]} 50. b6 {[%clk 0:00:06]}  f3+ {[%clk 0:00:04]} 51. Kf1 {[%clk 0:00:06]}  Rh8 {[%clk 0:00:04]} 52. a7 {[%clk 0:00:04]}  Rxh2 {[%clk 0:00:02]} 53. Ke1 {[%clk 0:00:05]}  e3 {[%clk 0:00:02]} 54. fxe3 {[%clk 0:00:02]}  Rh1+ {[%clk 0:00:01]} 55. Kd2 {[%clk 0:00:01]}  Rh2+ {[%clk 0:00:02]} 56. Kd3 {[%clk 0:00:01]}  f2 {[%clk 0:00:03]} 57. Ra1 {[%clk 0:00:01]}  Rh8 {[%clk 0:00:02]} 58. Rf1 {[%clk 0:00:01]}  Rd8+ {[%clk 0:00:02]} 59. Ke2 {[%clk 0:00:01]}  Kg3 {[%clk 0:00:03]} 60. Rxf2 {[%clk 0:00:02]}  Rc8 {[%clk 0:00:03]} 61. Rf3+ {[%clk 0:00:03]}  Kg4 {[%clk 0:00:03]} 62. b7 {[%clk 0:00:04]}  Rxc3 {[%clk 0:00:03]} 63. b8=Q {[%clk 0:00:05]}  Rc2+ {[%clk 0:00:03]} 64. Kd3 {[%clk 0:00:05]}  Rg2 {[%clk 0:00:03]} 65. Rf6 {[%clk 0:00:05]}  Kh3 {[%clk 0:00:03]} 66. Qc8+ {[%clk 0:00:05]}  Kg3 {[%clk 0:00:03]} 67. a8=Q {[%clk 0:00:06]}  g4 {[%clk 0:00:04]} 68. Qab8+ {[%clk 0:00:06]}  Kh3 {[%clk 0:00:04]} 69. Rh6# {[%clk 0:00:06]} 1-0


[Site "https://www.chess.com"]

[Event "Titled Tuesday Blitz July 26 Late 2022"]
[White "Pesotskiy, Mikhail"]
[Black "Kovacevic, Radmila"]
[WhiteFideId "34164453"]
[BlackFideId "933171"]
[WhiteElo "2010"]
[BlackElo "2157"]
[Result "1-0"]
[Round "08"]
[TimeControl "180+1"]
[Date "2022.07.27"]
[WhiteClock "0:01:32"]
[BlackClock "0:00:18"]

1. d4 {[%clk 0:03:00]}  e5 {[%clk 0:03:00]} 2. dxe5 {[%clk 0:03:00]}  Nc6 {[%clk 0:02:47]} 3. Nf3 {[%clk 0:03:00]}  Qe7 {[%clk 0:02:47]} 4. Bf4 {[%clk 0:02:58]}  Qb4+ {[%clk 0:02:47]} 5. Bd2 {[%clk 0:02:59]}  Qxb2 {[%clk 0:02:47]} 6. Nc3 {[%clk 0:02:59]}  Bb4 {[%clk 0:02:47]} 7. Rb1 {[%clk 0:03:00]}  Qxc3 {[%clk 0:02:47]} 8. Bxc3 {[%clk 0:02:59]}  Bxc3+ {[%clk 0:02:48]} 9. Nd2 {[%clk 0:02:59]}  Bxe5 {[%clk 0:02:48]} 10. e3 {[%clk 0:02:52]}  Nge7 {[%clk 0:02:39]} 11. Bd3 {[%clk 0:02:52]}  d5 {[%clk 0:02:31]} 12. O-O {[%clk 0:02:53]}  O-O {[%clk 0:02:29]} 13. Nf3 {[%clk 0:02:49]}  Bd6 {[%clk 0:02:18]} 14. c4 {[%clk 0:02:48]}  h6 {[%clk 0:01:58]} 15. Qe2 {[%clk 0:02:17]}  Rb8 {[%clk 0:01:52]} 16. Rfc1 {[%clk 0:02:14]}  Nb4 {[%clk 0:01:44]} 17. cxd5 {[%clk 0:02:12]}  Nexd5 {[%clk 0:01:35]} 18. Bc4 {[%clk 0:02:06]}  Be6 {[%clk 0:01:27]} 19. Nd4 {[%clk 0:02:03]}  Bd7 {[%clk 0:01:12]} 20. a3 {[%clk 0:01:58]}  Nb6 {[%clk 0:00:40]} 21. axb4 {[%clk 0:01:40]}  Nxc4 {[%clk 0:00:40]} 22. Qxc4 {[%clk 0:01:37]}  a6 {[%clk 0:00:26]} 23. b5 {[%clk 0:01:33]}  a5 {[%clk 0:00:21]} 24. b6 {[%clk 0:01:33]}  cxb6 {[%clk 0:00:17]} 25. Rxb6 {[%clk 0:01:30]}  Rfc8 {[%clk 0:00:16]} 26. Qf1 {[%clk 0:01:31]}  Rxc1 {[%clk 0:00:16]} 27. Qxc1 {[%clk 0:01:32]}  Rc8 {[%clk 0:00:16]} 28. Qxc8+ {[%clk 0:01:29]}  Bxc8 {[%clk 0:00:16]} 29. Rxd6 {[%clk 0:01:30]}  Kh7 {[%clk 0:00:14]} 30. Rd8 {[%clk 0:01:29]}  Bg4 {[%clk 0:00:15]} 31. Rb8 {[%clk 0:01:29]}  a4 {[%clk 0:00:13]} 32. Rxb7 {[%clk 0:01:29]}  h5 {[%clk 0:00:12]} 33. Ra7 {[%clk 0:01:30]}  Bd1 {[%clk 0:00:12]} 34. Kf1 {[%clk 0:01:29]}  f6 {[%clk 0:00:11]} 35. Ke1 {[%clk 0:01:30]}  Bb3 {[%clk 0:00:12]} 36. Nxb3 {[%clk 0:01:30]}  axb3 {[%clk 0:00:12]} 37. Rb7 {[%clk 0:01:31]}  b2 {[%clk 0:00:13]} 38. Rxb2 {[%clk 0:01:31]}  Kg6 {[%clk 0:00:13]} 39. Rb5 {[%clk 0:01:32]}  h4 {[%clk 0:00:13]} 40. Ke2 {[%clk 0:01:33]}  Kh6 {[%clk 0:00:13]} 41. g3 {[%clk 0:01:33]}  hxg3 {[%clk 0:00:13]} 42. fxg3 {[%clk 0:01:32]}  g5 {[%clk 0:00:14]} 43. h4 {[%clk 0:01:32]}  gxh4 {[%clk 0:00:14]} 44. gxh4 {[%clk 0:01:33]}  Kg6 {[%clk 0:00:15]} 45. Kf3 {[%clk 0:01:32]}  f5 {[%clk 0:00:15]} 46. Kf4 {[%clk 0:01:33]}  Kh5 {[%clk 0:00:15]} 47. Rxf5+ {[%clk 0:01:34]}  Kxh4 {[%clk 0:00:16]} 48. e4 {[%clk 0:01:35]}  Kh3 {[%clk 0:00:16]} 49. Rg5 {[%clk 0:01:36]}  Kh4 {[%clk 0:00:16]} 50. e5 {[%clk 0:01:32]}  Kh3 {[%clk 0:00:17]} 51. Rg7 {[%clk 0:01:32]}  Kh4 {[%clk 0:00:18]} 52. Rh7# {[%clk 0:01:32]} 1-0


[Site "https://www.chess.com"]

[Event "Titled Tuesday Blitz July 26 Late 2022"]
[White "Rastbod, Ali"]
[Black "Mica, Marek"]
[WhiteFideId "12567477"]
[BlackFideId "382884"]
[WhiteElo "2135"]
[BlackElo "2100"]
[Result "1/2-1/2"]
[Round "08"]
[TimeControl "180+1"]
[Date "2022.07.27"]
[WhiteClock "0:00:10"]
[BlackClock "0:00:15"]

1. e4 {[%clk 0:02:58]}  c6 {[%clk 0:02:59]} 2. Nc3 {[%clk 0:02:57]}  d5 {[%clk 0:02:59]} 3. Qe2 {[%clk 0:02:58]}  dxe4 {[%clk 0:02:57]} 4. Nxe4 {[%clk 0:02:58]}  Bf5 {[%clk 0:02:51]} 5. d3 {[%clk 0:02:57]}  e6 {[%clk 0:02:49]} 6. g4 {[%clk 0:02:57]}  Bg6 {[%clk 0:02:46]} 7. h4 {[%clk 0:02:57]}  h5 {[%clk 0:02:40]} 8. g5 {[%clk 0:02:57]}  Nd7 {[%clk 0:02:39]} 9. Nh3 {[%clk 0:02:55]}  Bxe4 {[%clk 0:02:19]} 10. dxe4 {[%clk 0:02:51]}  g6 {[%clk 0:02:19]} 11. Be3 {[%clk 0:02:45]}  Bg7 {[%clk 0:02:15]} 12. O-O-O {[%clk 0:02:46]}  Qa5 {[%clk 0:02:11]} 13. Kb1 {[%clk 0:02:43]}  Ne7 {[%clk 0:02:04]} 14. f4 {[%clk 0:02:30]}  Qb4 {[%clk 0:01:54]} 15. Bc1 {[%clk 0:02:20]}  Nc5 {[%clk 0:01:49]} 16. e5 {[%clk 0:02:01]}  Nd5 {[%clk 0:01:40]} 17. Qc4 {[%clk 0:01:59]}  Qxc4 {[%clk 0:01:19]} 18. Bxc4 {[%clk 0:02:00]}  Bf8 {[%clk 0:01:17]} 19. Nf2 {[%clk 0:01:56]}  Be7 {[%clk 0:01:16]} 20. c3 {[%clk 0:01:53]}  O-O-O {[%clk 0:01:12]} 21. Kc2 {[%clk 0:01:52]}  b5 {[%clk 0:01:07]} 22. Be2 {[%clk 0:01:51]}  Kc7 {[%clk 0:01:03]} 23. Bd2 {[%clk 0:01:49]}  Rd7 {[%clk 0:01:00]} 24. b4 {[%clk 0:01:47]}  Nb7 {[%clk 0:00:53]} 25. Ne4 {[%clk 0:01:47]}  a5 {[%clk 0:00:50]} 26. a3 {[%clk 0:01:48]}  Ra8 {[%clk 0:00:47]} 27. Kb3 {[%clk 0:01:47]}  Nb6 {[%clk 0:00:38]} 28. Bc1 {[%clk 0:01:39]}  Rad8 {[%clk 0:00:34]} 29. Rxd7+ {[%clk 0:01:39]}  Rxd7 {[%clk 0:00:35]} 30. Rf1 {[%clk 0:01:33]}  Nd5 {[%clk 0:00:28]} 31. Rf2 {[%clk 0:01:30]}  Kb6 {[%clk 0:00:26]} 32. Bf1 {[%clk 0:01:29]}  c5 {[%clk 0:00:23]} 33. bxc5+ {[%clk 0:01:30]}  Nxc5+ {[%clk 0:00:22]} 34. Nxc5 {[%clk 0:01:30]}  Bxc5 {[%clk 0:00:22]} 35. Rf3 {[%clk 0:01:31]}  Ne7 {[%clk 0:00:20]} 36. Kc2 {[%clk 0:01:24]}  Nf5 {[%clk 0:00:19]} 37. Rh3 {[%clk 0:01:25]}  b4 {[%clk 0:00:18]} 38. axb4 {[%clk 0:01:23]}  axb4 {[%clk 0:00:19]} 39. cxb4 {[%clk 0:01:23]}  Bxb4 {[%clk 0:00:19]} 40. Bd3 {[%clk 0:01:23]}  Nd4+ {[%clk 0:00:18]} 41. Kb1 {[%clk 0:01:24]}  Bc5 {[%clk 0:00:18]} 42. Bb2 {[%clk 0:01:23]}  Nf5 {[%clk 0:00:18]} 43. Be4 {[%clk 0:01:19]}  Bd4 {[%clk 0:00:17]} 44. Rb3+ {[%clk 0:01:18]}  Kc5 {[%clk 0:00:17]} 45. Rd3 {[%clk 0:01:16]}  Kc4 {[%clk 0:00:15]} 46. Bxf5 {[%clk 0:00:38]}  exf5 {[%clk 0:00:14]} 47. Kc2 {[%clk 0:00:38]}  Kc5 {[%clk 0:00:12]} 48. Rd2 {[%clk 0:00:36]}  Rd5 {[%clk 0:00:12]} 49. Ba3+ {[%clk 0:00:15]}  Kc4 {[%clk 0:00:12]} 50. Rd3 {[%clk 0:00:15]}  Bc5 {[%clk 0:00:11]} 51. Rc3+ {[%clk 0:00:15]}  Kd4 {[%clk 0:00:10]} 52. Bb2 {[%clk 0:00:11]}  Ke4 {[%clk 0:00:09]} 53. Rc4+ {[%clk 0:00:12]}  Kf3 {[%clk 0:00:07]} 54. Bc3 {[%clk 0:00:10]}  Be3 {[%clk 0:00:07]} 55. Rc7 {[%clk 0:00:10]}  Bxf4 {[%clk 0:00:07]} 56. Rxf7 {[%clk 0:00:10]}  Bxe5 {[%clk 0:00:08]} 57. Bxe5 {[%clk 0:00:11]}  Rxe5 {[%clk 0:00:09]} 58. Rf6 {[%clk 0:00:12]}  Kg4 {[%clk 0:00:09]} 59. Rxg6 {[%clk 0:00:12]}  Kxh4 {[%clk 0:00:10]} 60. Rg8 {[%clk 0:00:12]}  f4 {[%clk 0:00:10]} 61. Kd3 {[%clk 0:00:12]}  Rxg5 {[%clk 0:00:10]} 62. Rf8 {[%clk 0:00:13]}  Kg4 {[%clk 0:00:09]} 63. Ke4 {[%clk 0:00:12]}  f3 {[%clk 0:00:09]} 64. Rf4+ {[%clk 0:00:10]}  Kh3 {[%clk 0:00:06]} 65. Rxf3+ {[%clk 0:00:11]}  Rg3 {[%clk 0:00:07]} 66. Rf8 {[%clk 0:00:09]}  h4 {[%clk 0:00:08]} 67. Kf4 {[%clk 0:00:07]}  Rg4+ {[%clk 0:00:07]} 68. Kf3 {[%clk 0:00:07]}  Rg3+ {[%clk 0:00:08]} 69. Kf2 {[%clk 0:00:08]}  Rg4 {[%clk 0:00:08]} 70. Rf3+ {[%clk 0:00:07]}  Rg3 {[%clk 0:00:09]} 71. Rf8 {[%clk 0:00:03]}  Kh2 {[%clk 0:00:08]} 72. Rh8 {[%clk 0:00:02]}  h3 {[%clk 0:00:08]} 73. Rh6 {[%clk 0:00:03]}  Rg2+ {[%clk 0:00:09]} 74. Kf1 {[%clk 0:00:03]}  Ra2 {[%clk 0:00:09]} 75. Rh7 {[%clk 0:00:03]}  Ra1+ {[%clk 0:00:10]} 76. Kf2 {[%clk 0:00:04]}  Ra2+ {[%clk 0:00:10]} 77. Kf1 {[%clk 0:00:04]}  Kg3 {[%clk 0:00:10]} 78. Rg7+ {[%clk 0:00:05]}  Kf3 {[%clk 0:00:11]} 79. Rf7+ {[%clk 0:00:05]}  Ke3 {[%clk 0:00:11]} 80. Kg1 {[%clk 0:00:03]}  h2+ {[%clk 0:00:11]} 81. Kh1 {[%clk 0:00:04]}  Ra1+ {[%clk 0:00:12]} 82. Kxh2 {[%clk 0:00:04]}  Ra2+ {[%clk 0:00:13]} 83. Kg3 {[%clk 0:00:04]}  Ke4 {[%clk 0:00:12]} 84. Re7+ {[%clk 0:00:04]}  Kd5 {[%clk 0:00:11]} 85. Kf3 {[%clk 0:00:05]}  Kc5 {[%clk 0:00:12]} 86. Re5+ {[%clk 0:00:05]}  Kb4 {[%clk 0:00:13]} 87. Re2 {[%clk 0:00:06]}  Kb3 {[%clk 0:00:13]} 88. Re3+ {[%clk 0:00:06]}  Kb2 {[%clk 0:00:13]} 89. Re8 {[%clk 0:00:06]}  Kb3 {[%clk 0:00:13]} 90. Ke3 {[%clk 0:00:07]}  Kb2 {[%clk 0:00:13]} 91. Kd3 {[%clk 0:00:07]}  Ra3+ {[%clk 0:00:13]} 92. Kd2 {[%clk 0:00:07]}  Rh3 {[%clk 0:00:14]} 93. Rb8+ {[%clk 0:00:06]}  Ka3 {[%clk 0:00:14]} 94. Kc2 {[%clk 0:00:07]}  Rh2+ {[%clk 0:00:14]} 95. Kc3 {[%clk 0:00:07]}  Rh3+ {[%clk 0:00:15]} 96. Kc4 {[%clk 0:00:08]}  Rh4+ {[%clk 0:00:15]} 97. Kd3 {[%clk 0:00:08]}  Rh3+ {[%clk 0:00:15]} 98. Kc2 {[%clk 0:00:09]}  Rh2+ {[%clk 0:00:15]} 99. Kc3 {[%clk 0:00:09]}  Rh3+ {[%clk 0:00:15]} 100. Kc2 {[%clk 0:00:10]} 1/2-1/2


[Site "https://www.chess.com"]